Cogmind - Beta 13 @@@ ROGUE MODE // 2024.04.03 @ 16:51:21 Player: TheSecutor Result: Destroyed by D-53 Grenadier with Mini Grenade Launcher Performance ------------- Evolutions (1) 500 Regions Visited (4) 800 Robots Destroyed (33) 165 Value Destroyed (816) 816 Prototype IDs (3) 60 Alien Tech Used (0) 0 Bonus (53) 53 TOTAL SCORE: 2394 Bonus ------- Follower Combat Kills 53 Cogmind --------- Core Integrity 0/400 Matter 300/300 Energy 125/125 System Corruption 5% Temperature Cool (0) Movement Core (750) Ox14 Location -9/Mines Parts ------- > --- POWER (1) -------- Light Ion Engine > --- PROPULSION (2) --- (None) > --- UTILITY (3) ------ High-capacity Storage Unit Structural Scanner Terrain Scanner > --- WEAPON (3) ------- (None) > --- INVENTORY (20) --- (None) Peak State ------------ > --- POWER ------------ Light Ion Engine > --- PROPULSION ------- Aluminum Leg Aluminum Leg > --- UTILITY ---------- Heat Sink High-capacity Storage Unit Terrain Scanner > --- WEAPON ----------- Small Laser Light EM Pulse Cannon Advanced Beam Cannon > --- INVENTORY -------- Wheel Wheel Improved EM Shotgun Small Laser [Rating: 12] Favorites ----------- Power Ion Engine Engine Ion Engine Power Core Light Nuclear Core Propulsion Aluminum Leg Leg Aluminum Leg Wheel Wheel Flight Unit Flight Unit Utility High-capacity Storage Unit Device Terrain Scanner Storage High-capacity Storage Unit Weapon Light Assault Rifle Energy Gun EM Pulse Gun Energy Cannon Advanced Beam Cannon Ballistic Gun Light Assault Rifle Build | -11 -10 -10 -9 -9 ------- Run | Yrd Mat Min Mat Min Slots Evolved 2 | . . . 2 . Power . | . . . . . Propulsion . | . . . . . Utility 1 | . . . 1 . Weapon 1 | . . . 1 . Parts Attached 36 | 6 3 10 11 6 Power 9 | 1 1 3 2 2 Engine 8 | 1 . 3 2 2 Core 1 | . 1 . . . Reactor . | . . . . . Propulsion 12 | 2 1 4 3 2 Treads . | . . . . . Leg 7 | 2 1 4 . . Wheel 2 | . . . . 2 Hover . | . . . . . Flight 3 | . . . 3 . Utility 5 | 1 1 . 2 1 Device 3 | . . . 2 1 Storage 2 | 1 1 . . . Processor . | . . . . . Hackware . | . . . . . Protection . | . . . . . Artifact . | . . . . . Weapon 10 | 2 . 3 4 1 Energy Gun 6 | . . 3 2 1 Energy Cannon 2 | . . . 2 . Ballistic Gun 2 | 2 . . . . Ballistic Cannon . | . . . . . Launcher . | . . . . . Special Weapon . | . . . . . Impact Weapon . | . . . . . Slashing Weapon . | . . . . . Piercing Weapon . | . . . . . Special Melee Weapon . | . . . . . Unidentified Prototypes 1 | . . . . 1 Parts Lost 19 | . . 4 9 6 Power 4 | . . 2 1 1 Propulsion 6 | . . 1 2 3 Utility 1 | . . . 1 . Weapon 8 | . . 1 5 2 Highest Loss Streak 7 | . . 2 7 5 To Critical Strikes . | . . . . . Average Slot Usage (%) 88 | . 99 88 88 74 Engine 7 | . 5 4 9 11 Core 1 | . 8 1 . . Leg 20 | . 28 27 16 . Wheel 1 | . . . . 15 Flight 1 | . . . 3 3 Device 6 | . . . 13 13 Storage 21 | . 27 28 16 11 Energy Gun 11 | . . 3 22 20 Energy Cannon 1 | . . . 4 . Ballistic Gun 12 | . 28 21 . . Naked Turns . | . . . . . Heaviest Build 56 | 13 53 54 56 51 Greatest Support 20 | 20 20 20 20 20 Greatest Overweight (x) 14 | . 2 5 12 14 Average Overweight (x) 2 | . 1 2 2 2 Largest Inventory Capacity 20 | 8 20 20 20 20 Average Capacity 19 | 6 19 20 20 20 Most Carried 9 | 5 6 9 7 3 Average Carried 5 | 3 5 6 4 . Final Capacity 20 | 8 20 20 20 20 Final Carried 6 | 4 6 5 3 . Class Distribution -------------------- 69% | Mutant 24% | Scavenger-Skirmisher 5% | Scavenger-Mutant Dominant Class ---------------- Mutant | -10/Materials Mutant | -10/Mines Scavenger-Skirmisher | -9/Materials Mutant | -9/Mines Resources | -11 -10 -10 -9 -9 ----------- Run | Yrd Mat Min Mat Min Matter Collected 692 | 225 158 136 111 62 Remotely . | . . . . . Salvage Created 1016 | . 184 244 459 129 Parts 74 | . 12 14 37 11 Haulers Intercepted . | . . . . . Recyclers Shooed . | . . . . . Parts Field Recycled . | . . . . . Retrieved Matter . | . . . . . Parts Self-Destructed . | . . . . . Prevented . | . . . . . Kills | -11 -10 -10 -9 -9 ------- Run | Yrd Mat Min Mat Min Combat Hostiles Destroyed 30 | . 6 7 15 2 Guns 21 | . 6 7 6 2 Cannons 7 | . . . 7 . AOE 2 | . . . 2 . Classes Destroyed 6 | . 3 . 1 2 Builder 1 | . . . . 1 Watcher 2 | . 1 . 1 . Swarmer 14 | . 3 2 9 . Grunt 14 | . 3 5 5 1 Brawler 1 | . . . . 1 Sentry 1 | . . . 1 . Best Kill Streak 7 | . 4 2 7 2 Combat Bots Only 6 | . 3 2 6 2 Max Kills in Single Turn 2 | . 2 1 1 1 Gunslinging 1 | . 1 . . . Exploded 1 | . . . 1 . Melee . | . . . . . Uniques/NPCs Destroyed . | . . . . . Combat | -11 -10 -10 -9 -9 -------- Run | Yrd Mat Min Mat Min Hostile Shots Fired 262 | . 48 55 132 27 Missed 60 | . 16 9 32 3 Damage Taken 2389 | . 312 580 903 594 Core 573 | . 62 93 168 250 Absorbed by Shields . | . . . . . Core Remaining (%) 69 | 100 . 38 . . Volleys Fired 114 | . 27 34 39 14 Largest 3 | . 2 2 3 2 Hottest 136 | . 40 85 136 85 Shots Fired 195 | . 54 55 63 23 Gun 166 | . 54 55 34 23 Cannon 29 | . . . 29 . Launcher . | . . . . . Special . | . . . . . Kinetic 98 | . 54 44 . . Thermal 53 | . . 11 29 13 Explosive . | . . . . . Electromagnetic 44 | . . . 34 10 Robot Hit Streak 10 | . 10 7 7 7 Robot Miss Streak 5 | . 3 4 5 4 Penetration Max . | . . . . . Secondary Targets 2 | . 1 . . 1 Max Gunslinging Chain 1 | . 1 . . 1 Shots Hit Robots 121 | . 37 34 34 16 Core Hits 60 | . 16 16 21 7 Critical Kills . | . . . . . Critical Parts Destroyed . | . . . . . Critical Strikes 2 | . . 2 . . Burn 2 | . . 2 . . Melee Attacks . | . . . . . Impact . | . . . . . Slashing . | . . . . . Piercing . | . . . . . Sneak Attacks . | . . . . . Combat Hostiles . | . . . . . Follow-up Attacks . | . . . . . Damage Inflicted 1677 | . 374 375 723 205 Guns 1205 | . 373 375 258 199 Cannons 333 | . . . 333 . Explosions 132 | . . . 132 . Melee . | . . . . . Ramming 7 | . 1 . . 6 Kinetic 601 | . 373 228 . . Thermal 566 | . . 147 330 89 Explosive . | . . . . . Electromagnetic 503 | . . . 393 110 Impact . | . . . . . Slashing . | . . . . . Piercing . | . . . . . Highest Corruption 5 | . . . . 5 Average Corruption 5 | . . . . 5 Corruption Purged . | . . . . . Corruption Blocked . | . . . . . Effects 9 | . . . . 9 Message Errors 3 | . . . . 3 Matter Fused 3 | . . . . 3 Data Loss (minor) 2 | . . . . 2 Weapon Failures 1 | . . . . 1 Overload Shots . | . . . . . Overflow Damage 19 | . . . 19 . Projectiles 8 | . . . 8 . Explosions 11 | . . . 11 . Melee . | . . . . . Knockbacks . | . . . . . Impact . | . . . . . Kinetic . | . . . . . Secondary . | . . . . . Self-Inflicted Damage 36 | . . . 33 3 Shots 1 | . . . 1 . Rammed 1 | . . . . 1 Targets Rammed 2 | . 1 . . 1 Kicked 1 | . 1 . . . Crushed . | . . . . . Highest Temperature 349 | . 28 349 114 178 Average Temperature 63 | . 6 121 38 70 Received Heat Transfer 552 | . 84 336 84 48 Effects 1 | . . 1 . . Energy Bleed 1 | . . 1 . . Siege Activations . | . . . . . Robots Corrupted . | . . . . . Combat Hostiles . | . . . . . Parts Fried 2 | . . . 2 . Impact Corruptions . | . . . . . Robots Melted . | . . . . . Combat Hostiles . | . . . . . Parts Melted . | . . . . . Heat Transferred 1289 | . . 481 608 200 Parts Sabotaged . | . . . . . Parts Stolen . | . . . . . Parts Stripped . | . . . . . Power Chain Reactions 1 | . . . 1 . Alert | -11 -10 -10 -9 -9 ------- Run | Yrd Mat Min Mat Min Peak Influence 315 | . 189 118 315 159 Initial 114 | . . 73 39 114 Average 113 | . 92 78 155 149 Maximum Alert Level 1 | . . . 1 . Low Security (%) 83 | 100 100 100 52 100 Level 1 16 | . . . 47 . Level 2 . | . . . . . Level 3 . | . . . . . Level 4 . | . . . . . Level 5 . | . . . . . High Security . | . . . . . Max Security . | . . . . . Squads Dispatched 3 | . . . 3 . Investigation 1 | . . . 1 . Extermination . | . . . . . Reinforcement 2 | . . . 2 . Assault . | . . . . . Garrison . | . . . . . Intercept . | . . . . . Searches Triggered . | . . . . . Construction Impeded . | . . . . . Haulers Reinforced . | . . . . . Active Scanning Responses . | . . . . . Cargo Convoy Interrupts . | . . . . . Stealth | -11 -10 -10 -9 -9 --------- Run | Yrd Mat Min Mat Min Distress Signals 3 | . 1 . 2 . Communications Jammed . | . . . . . Distress Signals . | . . . . . Times Spotted 50 | . 11 9 22 8 Peak Tracking Total 6 | . 4 3 4 6 Tactical Retreats 2 | . . 1 1 . Traps | -11 -10 -10 -9 -9 ------- Run | Yrd Mat Min Mat Min Traps Triggered . | . . . . . Indirectly . | . . . . . Trap Hack Attempts . | . . . . . Triggered . | . . . . . Disarmed . | . . . . . Reprogrammed . | . . . . . Reused . | . . . . . Traps Extracted . | . . . . . Installed . | . . . . . Triggered . | . . . . . Machines | -11 -10 -10 -9 -9 ---------- Run | Yrd Mat Min Mat Min Machines Disabled 4 | . 1 . 3 . Max in Single Turn 2 | . 1 . 2 . Machines Repaired . | . . . . . Machines Dismantled . | . . . . . Machines Sabotaged . | . . . . . Overloaded Fab Kills . | . . . . . Hacking | -11 -10 -10 -9 -9 --------- Run | Yrd Mat Min Mat Min Machines Accessed 2 | . 1 . 1 . Terminals 2 | . 1 . 1 . Fabricators . | . . . . . Repair Stations . | . . . . . Recycling Units . | . . . . . Scanalyzers . | . . . . . Garrison Access . | . . . . . Total Hacks 5 | . 2 . 3 . Successful 2 | . 1 . 1 . Failed 3 | . 1 . 2 . Catastrophic . | . . . . . Database Lockouts . | . . . . . Manual . | . . . . . Terminals 5 | . 2 . 3 . Fabricators . | . . . . . Repair Stations . | . . . . . Recycling Units . | . . . . . Scanalyzers . | . . . . . Garrison Access . | . . . . . Terminal Hacks 2 | . 1 . 1 . Record 1 | . 1 . . . Prototype ID Bank 1 | . . . 1 . Fabricator Hacks . | . . . . . Repair Station Hacks . | . . . . . Recycling Unit Hacks . | . . . . . Scanalyzer . | . . . . . Garrison Access Hacks . | . . . . . Unauthorized Hacks . | . . . . . Terminals . | . . . . . Fabricators . | . . . . . Repair Stations . | . . . . . Recycling Units . | . . . . . Scanalyzers . | . . . . . Garrison Access . | . . . . . Data Cores Recovered . | . . . . . Used . | . . . . . Hacking Detections 2 | . 1 . 1 . Full Trace Events 1 | . . . 1 . Feedback Events . | . . . . . Feedback Blocked . | . . . . . Robot Schematics Acquired . | . . . . . Robots Built . | . . . . . Authchips . | . . . . . Time . | . . . . . Total Robot Build Rating . | . . . . . Part Schematics Acquired . | . . . . . Parts Built . | . . . . . Authchips . | . . . . . Time . | . . . . . Total Part Build Rating . | . . . . . Parts Repaired . | . . . . . Time . | . . . . . Parts Recycled . | . . . . . Recycled Matter . | . . . . . Retrieved Matter . | . . . . . Retrieved Components . | . . . . . Parts Scanalyzed . | . . . . . Part Schematics Acquired . | . . . . . Parts Damaged . | . . . . . Bothacking | -11 -10 -10 -9 -9 ------------ Run | Yrd Mat Min Mat Min Used RIF Installer . | . . . . . Robots Hacked . | . . . . . Non-combat . | . . . . . Combat . | . . . . . Robot Hacks Applied . | . . . . . Relay Couplers Released . | . . . . . Fabnet Peak Effective % . | . . . . . Robots Rewired . | . . . . . Allies Hacked . | . . . . . Hacks Repelled . | . . . . . Allies | -11 -10 -10 -9 -9 -------- Run | Yrd Mat Min Mat Min Total Allies 1 | . . 1 . . Largest Group 1 | . . 1 1 . Highest-Rated Group 31 | . . 31 31 . Highest-Rated Ally 31 | . . 31 31 . Total Orders . | . . . . . Ally Attacks 11 | . . . 11 . Total Damage 211 | . . . 211 . Kills 5 | . . . 5 . Allies Corrupted . | . . . . . Allies Melted . | . . . . . Intel | -11 -10 -10 -9 -9 ------- Run | Yrd Mat Min Mat Min Robot Analysis Total . | . . . . . Derelict Logs Recovered 1 | . . 1 . . Drone Launches . | . . . . . Drone Recoveries . | . . . . . Exploration | -11 -10 -10 -9 -9 ------------- Run | Yrd Mat Min Mat Min Turns Passed 2164 | 55 329 770 764 246 Spaces Moved 755 | 41 98 255 212 149 Core 14 | 13 . . . 1 Treads . | . . . . . Legs 566 | 28 98 255 185 . Wheels 145 | . . . . 145 Hover . | . . . . . Flight 30 | . . . 27 3 Fastest Speed 50 | 50 120 260 260 110 Average Speed 236 | 97 248 261 301 131 Slowest Speed 1010 | 120 260 470 1010 920 Overloaded Moves . | . . . . . Propulsion Burnouts . | . . . . . Robots Hopped . | . . . . . Cave-ins Triggered . | . . . . . Exploration Rate (%) 32 | 3 27 73 32 25 Regions Visited 4 Branch Regions 2 Pre-discovered Areas 1 | . . 1 . . Known Exits Taken . | . . . . . Unknown Exits Taken 4 | 1 1 1 1 . Scrap Searched 1 | . . 1 . . Spaces Dug . | . . . . . Terrain Destroyed 3 | . . . 3 . Melee . | . . . . . Projectile . | . . . . . AOE 3 | . . . 3 . Terrain Rammed . | . . . . . Walls Destroyed . | . . . . . Machines Disabled . | . . . . . Actions | -11 -10 -10 -9 -9 --------- Run | Yrd Mat Min Mat Min Total 960 | 54 134 312 283 177 Wait 10 | 1 . 1 6 2 Move 751 | 40 97 254 211 149 Hop . | . . . . . Pick Up 32 | 7 4 7 11 3 Fast Attach 3 | 3 . . . . Attach 24 | 3 1 6 9 5 Detach . | . . . . . Swap 9 | . 2 4 2 1 Drop 15 | . 2 6 5 2 Fire 114 | . 27 34 39 14 Melee . | . . . . . Ram 1 | . . . . 1 Kick 1 | . 1 . . . Crush . | . . . . . Escape Stasis . | . . . . . Rewire . | . . . . . Trap . | . . . . . Miscellaneous . | . . . . . Route ------- -11/Scrapyard -10/Materials -10/Mines -9/Materials -9/Mines History --------- Turn | Location | Event 12 | -11/Scrapyard | Discovered new exit (range 15) 56 | -11/Scrapyard | Entered Materials 288 | -10/Materials | Discovered new exit (range 8) 301 | -10/Materials | Build established: Mutant 385 | -10/Materials | Entered Mines 418 | -10/Mines | Met a Derelict bent on vengeance 555 | -10/Mines | Learned location of Storage (-7) 1058 | -10/Mines | Core integrity fell below 50% 1137 | -10/Mines | Discovered new exit (range 8) 1138 | -10/Mines | Escorted by a lone wolf Derelict 1155 | -10/Mines | Entered Materials 1155 | -9/Materials | Accompanied by 1 ally 1155 | -9/Materials | Evolved 2 slots: Utility x1, Weapon x1 1462 | -9/Materials | Build established: Scavenger-Skirmisher 1668 | -9/Materials | Discovered new exit (range 10) 1786 | -9/Materials | Lost 7 parts (1p2n1u3w) 1919 | -9/Materials | Entered Mines 1928 | -9/Mines | Core integrity fell below 50% 2090 | -9/Mines | Assembled infested the area 2162 | -9/Mines | Core integrity fell below 20% 2165 | -9/Mines | Destroyed by D-53 Grenadier with Mini Grenade Launcher Last Messages --------------- Acquired Structural Scanner. System corrupted: Component data lost. System corrupted: Matter fused (-9). Imp. EM Shotgun destroyed. C-30 ARC bursts open, deploying its payload. D-53 Grenadier unfolds itself. System corrupted: Sml. Laser failed to cycle. Wheel destroyed. as-35905 destroyed. as-15719 destroyed. Ion Engine destroyed. as-73493 destroyed. The unstable cave ceiling collapses. Sml. Laser destroyed. Pressure Siphon disabled. The unstable cave ceiling collapses. Wheel destroyed. D-53 Grenadier destroyed. Acquired 5 matter. K1PRI1 6OXRE89KRWSBBQMW X:FCWHZSTK,QHS Map ----- +----------------------------------------------------+ | ?????????????????????????????????????## #####???#? | | ??????????????#????????????????? ##???# #????????? | | ?????????????????????######???# ###### #????????? | | ?????????????????????########## #???#????? | | ?????????????????????## #????????? | | ???????????????????####|#### #### #### #????????? | | ???????????????????####%#### #### #??# #????????? | | ???????????????????## = ## ## #??# #????????? | | ???????????????????## """## ## ##?# #????????? | | ???????????????????## """## ## ### #????????? | | ???????????????????## """## ## #????????? | | ??????????? ???????## " ## ## #????????? | | ???????????????????####%#### ##???????? | | ??????????????????#####"######## ##???????? | | ?????????? ??????????## ##???#?# ##??????? | | ????????????#????????## ##????## """ #???#??# | | ?????????????#??#??#### ####???## """ #??????? | | ???????????????????#### ####??#?# """ ##????#?? | | ???????????????????## # # ###???# ###??#???? | | ??????????????????### ####### ##????????? | | ???????????????? ?### ####### ##????????? | | ?????????????????### ##?### ##??#????? | | ????????????#### ### ##???## ###?????? | | ????????????#### ### d ####??## ###???? | | ??????????? %%* $ ####???# #????? | | ?????????????####### @ ###?## #????? | | ?????????????####### #### ##????? | | ??????????????????#### "" ##?????? | | ?????????????? ???#### """ #??????? | | ???????????????? ???##### """ #### #??????? | | ????????????????????###### #### ##??????? | | ???????????????????????##### ##### ##???????? | | ????????????????????????########## ##?????#??? | | ????????????????????????## ##### #?????????? | | ????????????????????????# #?????????? | | ???????????????????????## ##?????????? | | ??????????????????????#?## #??????????? | | ???????????????????????#?#### ##??????????? | | ?????????????????????#?#????## ###?????##????? | | ?????????????????????????????## ###?????????????? | | ??????????????????????????#???#####??????????????? | | ?????????????????????????????????????????????????? | | | | | | | | | | | | | | | | | +----------------------------------------------------+ Best States ------------- Heat Dissipation 38 Energy Generation 14 Energy Capacity 250 Matter Stores 300 Matter Capacity 300 Sight Range 16 Terrain Scan Range 14 Terrain Scan Density 10 Evasion (%) 55 Item Schematics ----------------- None Robot Schematics ------------------ None Fabricated ------------ Nothing Alien Tech Used ----------------- None Achievements -------------- None Challenges ------------ None Game ------ Seed RestorationTargetingAnalyzer Manual? 0 Play Time 00:21:01 Cumulative 2.7 hours Start 2024.04.02 @ 19:30:37 End 2024.04.03 @ 16:51:21 Sessions 3 Manual Loads 0 Difficulty Rogue Special Mode None Game No. 8 Rogue 8 Adventurer 0 Explorer 0 Win Type - Total 0 Types 0/0/0/0/0/0/0/0/0 Lore% 1 Gallery% 9 Achievement% 8 Wizard Run 0 Options --------- Layout 1 ASCII 0 Keyboard 0 Movement Mouse Keybinds 0 Fullscreen 1 Font 24/Smallcaps Map View 50x35 Zoom Use 0% Tactical HUD 0 Map Filters NONE Filters NONE Steam 1 RUN: 836d89c6-88cf-4afe-926f-b0d8318620ef